Cogmind - Beta 11.1 @@@ ROGUE MODE // 2022.05.04 @ 08:24:10 Player: kway_side Result: Destroyed by G-34 Mercenary with Small Laser Performance ------------- Evolutions (1) 500 Regions Visited (3) 600 Robots Destroyed (44) 220 Value Destroyed (697) 697 Prototype IDs (3) 60 Alien Tech Used (0) 0 Bonus (0) 0 TOTAL SCORE: 2077 Bonus ------- None Cogmind --------- Core Integrity 0/400 Matter 248/300 Energy 100/100 System Corruption 0% Temperature Cool (6) Movement Core (700) Ox13 Location -9/Materials Parts ------- > --- POWER (1) -------- (None) > --- PROPULSION (3) --- (None) > --- UTILITY (3) ------ High-capacity Storage Unit > --- WEAPON (2) ------- (None) > --- INVENTORY (20) --- Improved Treads Wheel Disposable Heat Sink Huge Storage Unit High-capacity Battery (250) Experimental Sensor Array Signal Interpreter Signal Interpreter Core Shielding Hacking Suite Small Laser Welding Torch Hammer Peak State ------------ > --- POWER ------------ Ion Engine > --- PROPULSION ------- Light Treads Improved Treads Improved Treads > --- UTILITY ---------- High-capacity Storage Unit Experimental Sensor Array Weapon Shielding > --- WEAPON ----------- Light EM Pulse Cannon Light Assault Rifle > --- INVENTORY -------- Ion Engine Light Treads Improved Treads Improved Treads Wheel Disposable Heat Sink Huge Storage Unit High-capacity Battery Signal Interpreter Signal Interpreter Terrain Scanner Core Shielding Hacking Suite Small Laser Small Laser Welding Torch Plasma Cutter Hammer [Rating: 22] Favorites ----------- Power Ion Engine Engine Ion Engine Propulsion Improved Treads Treads Improved Treads Leg Aluminum Leg Wheel Wheel Utility High-capacity Storage Unit Device Sensor Array Storage High-capacity Storage Unit Protection Weapon Shielding Weapon Light EM Pulse Cannon Energy Gun EM Pulse Gun Energy Cannon Light EM Pulse Cannon Ballistic Gun Assault Rifle Special Weapon Plasma Cutter Impact Weapon Hammer Build | -11 -10 -10 -9 ------- Run | Scr Mat Min Mat Slots Evolved 2 | . . . 2 Power . | . . . . Propulsion 1 | . . . 1 Utility 1 | . . . 1 Weapon . | . . . . Parts Attached 41 | . 28 3 10 Power 2 | . 1 . 1 Engine 2 | . 1 . 1 Core . | . . . . Reactor . | . . . . Propulsion 10 | . 5 1 4 Treads 9 | . 4 1 4 Leg . | . . . . Wheel 1 | . 1 . . Hover . | . . . . Flight . | . . . . Utility 12 | . 8 2 2 Device 5 | . 2 1 2 Storage 4 | . 4 . . Processor . | . . . . Hackware . | . . . . Protection 3 | . 2 1 . Artifact . | . . . . Weapon 17 | . 14 . 3 Energy Gun 3 | . 2 . 1 Energy Cannon 8 | . 8 . . Ballistic Gun 3 | . 2 . 1 Ballistic Cannon . | . . . . Launcher . | . . . . Special Weapon 1 | . . . 1 Impact Weapon 2 | . 2 . . Slashing Weapon . | . . . . Piercing Weapon . | . . . . Special Melee Weapon . | . . . . Unidentified Prototypes 1 | . . . 1 Parts Lost 18 | . 3 2 13 Power 2 | . . . 2 Propulsion 5 | . . . 5 Utility 3 | . . 1 2 Weapon 8 | . 3 1 4 Highest Loss Streak 13 | . 1 1 13 To Critical Strikes . | . . . . Average Slot Usage (%) 95 | . 98 92 79 Engine 13 | . 13 14 7 Treads 21 | . 24 14 30 Wheel 5 | . 1 14 . Device 2 | . 2 3 8 Storage 13 | . 14 14 11 Protection 11 | . 11 10 7 Energy Gun 1 | . 1 . . Energy Cannon 16 | . 14 21 7 Ballistic Gun 6 | . 10 . 4 Naked Turns . | . . . . Heaviest Build 92 | 14 92 54 52 Greatest Support 69 | 20 46 23 69 Greatest Overweight (x) 13 | . 5 5 13 Average Overweight (x) 2 | . 1 3 . Largest Inventory Capacity 25 | . 25 20 20 Average Capacity 20 | . 20 20 20 Most Carried 20 | . 19 20 20 Average Carried 14 | . 11 19 17 Final Capacity 20 | 8 20 20 20 Final Carried 20 | 6 19 20 13 Class Distribution -------------------- 100% | Mutant Dominant Class ---------------- Mutant | -10/Materials Mutant | -10/Mines Mutant | -9/Materials Resources | -11 -10 -10 -9 ----------- Run | Scr Mat Min Mat Matter Collected 597 | 200 336 61 . Remotely . | . . . . Salvage Created 1111 | . 737 215 159 Parts 72 | . 49 13 10 Haulers Intercepted 2 | . 2 . . Recyclers Shooed 1 | . 1 . . Parts Field Recycled . | . . . . Retrieved Matter . | . . . . Parts Self-Destructed . | . . . . Prevented . | . . . . Kills | -11 -10 -10 -9 ------- Run | Scr Mat Min Mat Combat Hostiles Destroyed 30 | . 16 9 5 Melee 2 | . 2 . . Guns 6 | . 3 . 3 Cannons 18 | . 7 9 2 AOE 4 | . 4 . . Classes Destroyed 10 | . 8 1 1 Worker 3 | . 3 . . Builder 2 | . 1 1 . Tunneler 1 | . . 1 . Hauler 2 | . 2 . . Recycler 1 | . 1 . . Operator 2 | . 2 . . Watcher 3 | . 3 . . Swarmer 21 | . 9 9 3 Grunt 8 | . 7 . 1 Sentry 1 | . . . 1 Best Kill Streak 11 | . 11 4 3 Combat Bots Only 5 | . 5 4 3 Max Kills in Single Turn 3 | . 3 1 1 Gunslinging . | . . . . Exploded 2 | . 2 . . Melee 1 | . 1 . . Uniques/NPCs Destroyed . | . . . . Combat | -11 -10 -10 -9 -------- Run | Scr Mat Min Mat Damage Taken 2559 | . 772 343 1444 Core 562 | . 91 60 411 Absorbed by Shields . | . . . . Redirected to Shielding 91 | . 52 19 20 Regen/Repaired (Parts) 99 | . 99 . . Core Remaining (%) 69 | 100 . 39 . Volleys Fired 95 | . 48 27 20 Largest 2 | . 2 2 2 Hottest 112 | . 112 112 76 Shots Fired 152 | . 84 40 28 Gun 58 | . 41 . 17 Cannon 91 | . 43 40 8 Launcher . | . . . . Special 3 | . . . 3 Kinetic 46 | . 34 . 12 Thermal 8 | . . . 8 Explosive . | . . . . Electromagnetic 98 | . 50 40 8 Robot Hit Streak 11 | . 11 11 7 Robot Miss Streak 9 | . 9 3 3 Penetration Max . | . . . . Secondary Targets . | . . . . Shots Hit Robots 98 | . 58 25 15 Core Hits 48 | . 31 11 6 Critical Kills 2 | . 2 . . Critical Parts Destroyed . | . . . . Critical Strikes 6 | . 5 1 . Corrupt 4 | . 3 1 . Smash 2 | . 2 . . Melee Attacks 11 | . 11 . . Impact 11 | . 11 . . Slashing . | . . . . Piercing . | . . . . Sneak Attacks 1 | . 1 . . Combat Hostiles . | . . . . Follow-up Attacks . | . . . . Damage Inflicted 2282 | . 1567 531 184 Guns 405 | . 310 . 95 Cannons 1197 | . 608 531 58 Explosions 444 | . 444 . . Melee 205 | . 205 . . Ramming . | . . . . Kinetic 336 | . 285 . 51 Thermal 519 | . 444 . 75 Explosive . | . . . . Electromagnetic 1222 | . 633 531 58 Impact 205 | . 205 . . Slashing . | . . . . Piercing . | . . . . Highest Corruption . | . . . . Average Corruption . | . . . . Corruption Purged . | . . . . Corruption Blocked . | . . . . Overload Shots . | . . . . Overflow Damage 113 | . 93 20 . Projectiles 37 | . 17 20 . Explosions 36 | . 36 . . Melee 40 | . 40 . . Knockbacks 1 | . 1 . . Impact 1 | . 1 . . Kinetic . | . . . . Secondary . | . . . . Self-Inflicted Damage 199 | . 199 . . Shots 6 | . 6 . . Rammed . | . . . . Targets Rammed . | . . . . Kicked . | . . . . Crushed . | . . . . Highest Temperature 204 | . 165 204 74 Average Temperature 52 | . 37 79 22 Received Heat Transfer 648 | . 180 . 468 Siege Activations . | . . . . Robots Corrupted . | . . . . Combat Hostiles . | . . . . Parts Fried 7 | . 1 6 . Impact Corruptions 2 | . 2 . . Robots Melted . | . . . . Combat Hostiles . | . . . . Parts Melted . | . . . . Heat Transferred 761 | . 550 . 211 Parts Sabotaged . | . . . . Parts Stolen . | . . . . Parts Stripped . | . . . . Power Chain Reactions 7 | . 7 . . Missiles Intercepted . | . . . . Alert | -11 -10 -10 -9 ------- Run | Scr Mat Min Mat Peak Influence 321 | . 321 200 85 Initial 61 | . . 61 . Average 84 | . 91 78 35 Maximum Alert Level 1 | . 1 1 . Low Security (%) 93 | . 92 93 100 Level 1 6 | . 7 6 . Level 2 . | . . . . Level 3 . | . . . . Level 4 . | . . . . Level 5 . | . . . . High Security . | . . . . Max Security . | . . . . Squads Dispatched 3 | . 3 . . Investigation 1 | . 1 . . Extermination . | . . . . Reinforcement 2 | . 2 . . Assault . | . . . . Garrison . | . . . . Intercept . | . . . . Searches Triggered . | . . . . Construction Impeded . | . . . . Haulers Reinforced . | . . . . Active Scanning Responses . | . . . . Cargo Convoy Interrupts . | . . . . Stealth | -11 -10 -10 -9 --------- Run | Scr Mat Min Mat Distress Signals 4 | . 1 . 3 Communications Jammed . | . . . . Distress Signals . | . . . . Times Spotted 54 | . 24 12 18 Peak Tracking Total 9 | . 5 3 9 Tactical Retreats 5 | . 1 3 1 Traps | -11 -10 -10 -9 ------- Run | Scr Mat Min Mat Traps Triggered 3 | . 1 . 2 Indirectly . | . . . . Trap Hack Attempts . | . . . . Triggered . | . . . . Disarmed . | . . . . Reprogrammed . | . . . . Reused . | . . . . Traps Extracted . | . . . . Installed . | . . . . Triggered . | . . . . Machines | -11 -10 -10 -9 ---------- Run | Scr Mat Min Mat Machines Disabled 6 | . 4 1 1 Max in Single Turn 1 | . 1 1 1 Machines Sabotaged . | . . . . Garrisons Compromised . | . . . . Overloaded Fab Kills . | . . . . Hacking | -11 -10 -10 -9 --------- Run | Scr Mat Min Mat Machines Accessed 8 | . 7 1 . Terminals 6 | . 5 1 . Fabricators . | . . . . Repair Stations 1 | . 1 . . Recycling Units 1 | . 1 . . Scanalyzers . | . . . . Garrison Access . | . . . . Total Hacks 27 | . 23 4 . Successful 19 | . 18 1 . Failed 8 | . 5 3 . Catastrophic . | . . . . Database Lockouts . | . . . . Manual 14 | . 10 4 . Terminals 22 | . 18 4 . Fabricators . | . . . . Repair Stations 4 | . 4 . . Recycling Units 1 | . 1 . . Scanalyzers . | . . . . Garrison Access . | . . . . Terminal Hacks 13 | . 12 1 . Record 1 | . 1 . . Robot Analysis 6 | . 6 . . Prototype ID Bank 1 | . 1 . . Alert Level 1 | . 1 . . Locate Traps 1 | . 1 . . Recall Investigation 1 | . 1 . . Hauler Manifests 1 | . 1 . . Zone Layout 1 | . . 1 . Fabricator Hacks . | . . . . Repair Station Hacks 4 | . 4 . . Scan Component 2 | . 2 . . Repair 2 | . 2 . . Recycling Unit Hacks 1 | . 1 . . Report Inventory 1 | . 1 . . Scanalyzer . | . . . . Garrison Access Hacks . | . . . . Unauthorized Hacks 1 | . 1 . . Terminals 1 | . 1 . . Operators 1 | . 1 . . Fabricators . | . . . . Repair Stations . | . . . . Recycling Units . | . . . . Scanalyzers . | . . . . Garrison Access . | . . . . Data Cores Recovered . | . . . . Used . | . . . . Hacking Detections 7 | . 6 1 . Full Trace Events 2 | . 1 1 . Feedback Events . | . . . . Feedback Blocked . | . . . . Robot Schematics Acquired . | . . . . Robots Built . | . . . . Authchips . | . . . . Time . | . . . . Total Robot Build Rating . | . . . . Part Schematics Acquired . | . . . . Parts Built . | . . . . Authchips . | . . . . Time . | . . . . Total Part Build Rating . | . . . . Parts Repaired 2 | . 2 . . Time 58 | . 58 . . Parts Recycled . | . . . . Recycled Matter . | . . . . Retrieved Matter . | . . . . Retrieved Components . | . . . . Parts Scanalyzed . | . . . . Part Schematics Acquired . | . . . . Parts Damaged . | . . . . Bothacking | -11 -10 -10 -9 ------------ Run | Scr Mat Min Mat Used RIF Installer . | . . . . Robots Hacked . | . . . . Non-combat . | . . . . Combat . | . . . . Robot Hacks Applied . | . . . . Relay Couplers Released . | . . . . Fabnet Peak Effective % . | . . . . Robots Rewired . | . . . . Allies Hacked . | . . . . Hacks Repelled . | . . . . Allies | -11 -10 -10 -9 -------- Run | Scr Mat Min Mat Total Allies . | . . . . Largest Group . | . . . . Highest-Rated Group . | . . . . Highest-Rated Ally . | . . . . Total Orders . | . . . . Ally Attacks . | . . . . Total Damage . | . . . . Kills . | . . . . Allies Corrupted . | . . . . Allies Melted . | . . . . Intel | -11 -10 -10 -9 ------- Run | Scr Mat Min Mat Robot Analysis Total 6 | . 6 . . Derelict Logs Recovered 1 | . . 1 . Drone Launches . | . . . . Drone Recoveries . | . . . . Exploration | -11 -10 -10 -9 ------------- Run | Scr Mat Min Mat Turns Passed 3746 | . 2227 1309 210 Spaces Moved 1510 | 1 880 543 86 Core 1 | . . . 1 Treads 941 | . 655 201 85 Legs 68 | 1 67 . . Wheels 500 | . 158 342 . Hover . | . . . . Flight . | . . . . Fastest Speed 120 | 120 120 155 160 Average Speed 209 | 120 208 216 173 Slowest Speed 700 | 120 400 320 700 Overloaded Moves . | . . . . Propulsion Burnouts . | . . . . Robots Hopped . | . . . . Cave-ins Triggered . | . . . . Exploration Rate (%) 51 | 2 96 96 13 Regions Visited 3 Branch Regions 1 Pre-discovered Areas . | . . . . Known Exits Taken . | . . . . Unknown Exits Taken 3 | 1 1 1 . Scrap Searched 1 | . . 1 . Spaces Dug . | . . . . Terrain Destroyed 17 | . 17 . . Melee . | . . . . Projectile . | . . . . AOE 17 | . 17 . . Terrain Rammed . | . . . . Walls Destroyed . | . . . . Machines Disabled . | . . . . Actions | -11 -10 -10 -9 --------- Run | Scr Mat Min Mat Total 1924 | . 1165 639 120 Wait 233 | . 166 65 2 Move 1507 | . 879 542 86 Hop . | . . . . Pick Up 25 | . 22 2 1 Fast Attach 9 | . 9 . . Attach 14 | . 4 1 9 Detach 1 | . . . 1 Swap 18 | . 15 2 1 Drop 11 | . 11 . . Fire 95 | . 48 27 20 Melee 11 | . 11 . . Ram . | . . . . Kick . | . . . . Crush . | . . . . Escape Stasis . | . . . . Rewire . | . . . . Trap . | . . . . Miscellaneous . | . . . . Route ------- -11/Scrapyard -10/Materials (discovered 5 exits: [*Mat x3] / *Min x2) -10/Mines (discovered 2 exits: [*Mat x2]) -9/Materials (discovered 2 exits: Mat / [*Min]) History --------- Turn | Location | Event 1 | -11/Scrapyard | Discovered new exit (range 0) 1 | -11/Scrapyard | Entered Materials 301 | -10/Materials | Build established: Mutant 340 | -10/Materials | Discovered new exit (range 13) 691 | -10/Materials | Discovered new exit (range 3) 1193 | -10/Materials | Discovered new exit (range 8) 1531 | -10/Materials | Discovered new exit (range 16) 1671 | -10/Materials | Repaired Imp. Treads 1741 | -10/Materials | Repaired Ion Engine 2025 | -10/Materials | Discovered new exit (range 16) 2228 | -10/Materials | Entered Mines 2370 | -10/Mines | Found a damaged Exp. Sensor Array with a note attached 2373 | -10/Mines | Found Prototype Device 2404 | -10/Mines | Discovered new exit (range 6) 2765 | -10/Mines | Learned location of 1 exit from Materials 2919 | -10/Mines | Core integrity fell below 50% 3508 | -10/Mines | Discovered new exit (range 9) 3537 | -10/Mines | Entered Materials 3537 | -9/Materials | Evolved 2 slots: Propulsion x1, Utility x1 3538 | -9/Materials | Identified exit to Materials 3557 | -9/Materials | Identified Exp. Sensor Array 3656 | -9/Materials | Discovered new exit (range 12) 3732 | -9/Materials | Core integrity fell below 50% 3745 | -9/Materials | Core integrity fell below 20% 3747 | -9/Materials | Destroyed by G-34 Mercenary with Small Laser Last Messages --------------- 03717_ U-05 Engineer builds a Wall. 03717_ U-05 Engineer lays Concrete. 03718_ U-05 Engineer suffers critical hit (Burn). 03718_ U-05 Engineer destroyed. 03719_ The unstable cave ceiling collapses. 03719_ U-05 Engineer builds a Wall. 03721_ Terrain Scanner destroyed. 03721_ Imp. Treads destroyed. 03724_ U-05 Engineer builds a Wall. 03727_ Plasma Cutter destroyed. 03728_ The unstable cave ceiling collapses. 03730_ Triggered EMP Trap. 03730_ A bubble of electromagnetic force engulfs the area. 03733_ Critical hit (Burn: +37). 03737_ U-05 Engineer builds a Wall. 03741_ Lgt. Treads destroyed. 03743_ U-05 Engineer lays Concrete. 03744_ Critical hit (Burn: +37). 03744_ K-01 Serf collects debris. 03745_ U-05 Engineer lays Concrete. Map ----- +----------------------------------------------------+ | ?????????????????????????????????????????????????? | | ?????????????????????????????????????????????????? | | ?????????????????????????????????????????????????? | | ?????????????????????????????????????????????????? | | ?????????????????????????????????????????????????? | | ?????????????????????????????????????????????????? | | ?????????????????????????????????????????????????? | | ?????????????????????????????????????????????????? | | ?????????????????????????????????????????????????? | | ?????????????????????????????????????????????????? | | ?????????????????????????????????????????????????? | | ?????????????????????????????????????????????????? | | ????????????????? "??????????????????????????????? | | ??????????????????""?????????????????????????????? | | ??????????????????? ???????????????????????????? | | ???????????????????? ???????????????????????????? | | ????????????????????#/???????????????????????????? | | ??????????????#?????#k#####??????????????????????? | | ??????????????# ????# #?###########??????????? | | ??????????? ### ##### #?# #??????????? | | ?????????? = ### #??????????? | | ?????????? # #??????????? | | ???????????# Y + #??????????? | | ???????????+ "" % # #??????????? | | ???????????#?####### " # #?########?? | | ????????? ?# #######w ""@ # #?# ? # | | ???????????# # # # gl=%%# #?# """ # | | ??????????## g [ #########+### """"" # | | ??????????# # g #???????# # """"" # | | ??????????# " #???????# + """"" # | | ????????? # # Y #???????# # """ # | | ????????? # !=g #? ?????# # # | | ??????????# !#!ug #???????# # # | | ????? ????# =u%== "" #???????# # # | | ??????????# #[% " #???????# #####+#### | | ???????? ?# %#!!!! " # ??????# | | ??????????#* #u*%= #????"??+ | | ??????????####### #% [% #???????# | | ???????? ?#""!"!"" #! * #???????# ########## | | ??????????# "!"!" ## % #???????# ????????? | | ??????????# ?# " #???????# ????????? | | ????????? #???????# ????????? | | ????????? < ?????? ????????? | | ????????? ########?????? ????????? | | ????????/#? ##+###?????????????????????????? | | ??????????########???????????????????????????????? | | ?????????????????????????????????????????????????? | | ?????????????????????????????????????????????????? | | ?????????????????????????????????????????????????? | | ?????????????????????????????????????????????????? | +----------------------------------------------------+ Best States ------------- Heat Dissipation 28 Energy Generation 10 Energy Capacity 250 Matter Stores 300 Matter Capacity 300 Sight Range 16 Robot Scan Range 20 Terrain Scan Range 14 Terrain Scan Density 10 Propulsion Shielding 33 Weapon Shielding 33 Evasion (%) 55 Recoil Reduction 3 Item Schematics ----------------- None Robot Schematics ------------------ None Fabricated ------------ Nothing Alien Tech Used ----------------- None Achievements -------------- root@ Challenges ------------ None Game ------ Seed TrapForceBay Manual? 0 Play Time 00:34:22 Cumulative 79.4 hours Start 2022.05.04 @ 07:27:43 End 2022.05.04 @ 08:24:10 Sessions 1 Manual Loads 0 Difficulty Rogue Special Mode None Game No. 86 Rogue 86 Adventurer 0 Explorer 0 Win Type - Total 0 Types 0/0/0/0/0/0/0/0/0 Lore% 24 Gallery% 33 Achievement% 27 Wizard Run 0 Options --------- ASCII 0 Keyboard 0 Movement Numpad Keybinds 0 Fullscreen 2 Font 18/Smallcaps Map View 76x50 Tactical HUD 1 Map Filters NONE Filters NONE Steam 1 RUN: 28fb93da-3ffb-4a92-8c71-477bfaa0411e